[Event "Early-Titled-Tuesday-Blitz-October-03-2023"]
[Site "Chess.com"]
[Date "2023.10.03"]
[Round "5"]
[White "Antik5"]
[Black "Vision_64"]
[Result "1-0"]
[WhiteElo "2503"]
[BlackElo "2348"]
[TimeControl "180+1"]
[EndTime "8:53:56 PDT"]
[Termination "Antik5 won by resignation"]

1. c4 {[%clk 0:03:00.9]} 1... c5 {[%clk 0:02:55.1]} 2. Nf3 {[%clk 0:03:00.4]}
2... Nc6 {[%clk 0:02:54.5]} 3. g3 {[%clk 0:03:00.3]} 3... g6 {[%clk 0:02:54.1]}
4. Bg2 {[%clk 0:03:00]} 4... Bg7 {[%clk 0:02:54.5]} 5. O-O {[%clk 0:02:59]} 5...
Nf6 {[%clk 0:02:52.2]} 6. d4 {[%clk 0:02:57.4]} 6... cxd4 {[%clk 0:02:48.4]} 7.
Nxd4 {[%clk 0:02:58.3]} 7... O-O {[%clk 0:02:48]} 8. Nc3 {[%clk 0:02:55.7]} 8...
Nxd4 {[%clk 0:02:44.5]} 9. Qxd4 {[%clk 0:02:56.6]} 9... d6 {[%clk 0:02:44.9]}
10. Qd3 {[%clk 0:02:53]} 10... Nd7 {[%clk 0:02:40.3]} 11. Qc2 {[%clk 0:02:40]}
11... Ne5 {[%clk 0:02:36.5]} 12. b3 {[%clk 0:02:37.1]} 12... Bf5 {[%clk
0:02:35.1]} 13. e4 {[%clk 0:02:35.5]} 13... Bd7 {[%clk 0:02:28.5]} 14. h3 {[%clk
0:02:11.1]} 14... Nc6 {[%clk 0:02:26.8]} 15. Bb2 {[%clk 0:02:06.5]} 15... Nd4
{[%clk 0:02:18.4]} 16. Qd3 {[%clk 0:01:47.5]} 16... Qc8 {[%clk 0:02:08.8]} 17.
Kh2 {[%clk 0:01:45.9]} 17... f5 {[%clk 0:02:02.6]} 18. Nd5 {[%clk 0:01:40.2]}
18... Nc6 {[%clk 0:01:56.3]} 19. Bxg7 {[%clk 0:01:39]} 19... Kxg7 {[%clk
0:01:56.2]} 20. Qc3+ {[%clk 0:01:26.5]} 20... e5 {[%clk 0:01:52.1]} 21. exf5
{[%clk 0:01:10.3]} 21... gxf5 {[%clk 0:01:47.6]} 22. f4 {[%clk 0:01:09.9]} 22...
Nd4 {[%clk 0:01:31]} 23. Rae1 {[%clk 0:01:08.5]} 23... Re8 {[%clk 0:01:22.8]}
24. fxe5 {[%clk 0:00:55.6]} 24... dxe5 {[%clk 0:01:22.1]} 25. Rxe5 {[%clk
0:00:54.2]} 25... Rxe5 {[%clk 0:01:18.2]} 26. Qxd4 {[%clk 0:00:54.4]} 1-0

[Event "Early-Titled-Tuesday-Blitz-October-03-2023"]
[Site "Chess.com"]
[Date "2023.10.03"]
[Round "5"]
[White "AlmasRakhmatullaev"]
[Black "temiksmozg"]
[Result "1-0"]
[WhiteElo "2799"]
[BlackElo "2608"]
[TimeControl "180+1"]
[EndTime "8:53:58 PDT"]
[Termination "AlmasRakhmatullaev won by checkmate"]

1. e4 {[%clk 0:03:00.9]} 1... c5 {[%clk 0:02:58.2]} 2. Nf3 {[%clk 0:03:00.3]}
2... e6 {[%clk 0:02:57.9]} 3. g3 {[%clk 0:02:58.3]} 3... Nc6 {[%clk 0:02:56.9]}
4. Bg2 {[%clk 0:02:58]} 4... Nf6 {[%clk 0:02:57.5]} 5. Qe2 {[%clk 0:02:57.5]}
5... d5 {[%clk 0:02:46.2]} 6. e5 {[%clk 0:02:57.5]} 6... Nd7 {[%clk 0:02:44.4]}
7. O-O {[%clk 0:02:58]} 7... Qc7 {[%clk 0:02:18.3]} 8. Re1 {[%clk 0:02:57.9]}
8... Be7 {[%clk 0:02:17.2]} 9. d3 {[%clk 0:02:58.2]} 9... O-O {[%clk 0:02:16.5]}
10. Nbd2 {[%clk 0:02:58.4]} 10... b5 {[%clk 0:02:16.5]} 11. Nf1 {[%clk
0:02:58.7]} 11... a5 {[%clk 0:02:15.1]} 12. Bf4 {[%clk 0:02:57.9]} 12... Ba6
{[%clk 0:02:12]} 13. Ne3 {[%clk 0:02:56.2]} 13... Rac8 {[%clk 0:02:09.7]} 14.
Nxd5 {[%clk 0:02:52.5]} 14... exd5 {[%clk 0:01:58.2]} 15. e6 {[%clk 0:02:52.9]}
15... Bd6 {[%clk 0:01:57.8]} 16. exf7+ {[%clk 0:02:19.3]} 16... Rxf7 {[%clk
0:01:51.4]} 17. Ng5 {[%clk 0:02:19.6]} 17... Bxf4 {[%clk 0:01:33]} 18. Nxf7
{[%clk 0:02:16]} 18... Kxf7 {[%clk 0:01:24.7]} 19. Bxd5+ {[%clk 0:02:13.6]}
19... Kf8 {[%clk 0:01:24.2]} 20. Qe6 {[%clk 0:01:59.5]} 20... Nf6 {[%clk
0:01:20.6]} 21. gxf4 {[%clk 0:02:00]} 21... Nxd5 {[%clk 0:01:07.3]} 22. Qxd5
{[%clk 0:01:58.6]} 22... Nd4 {[%clk 0:01:01]} 23. Re3 {[%clk 0:01:33.5]} 23...
Bb7 {[%clk 0:00:22.2]} 24. Qh5 {[%clk 0:01:32.8]} 24... Kg8 {[%clk 0:00:17.8]}
25. Re8+ {[%clk 0:01:30.5]} 25... Rxe8 {[%clk 0:00:16.1]} 26. Qxe8# {[%clk
0:01:31.4]} 1-0

[Event "Early-Titled-Tuesday-Blitz-October-03-2023"]
[Site "Chess.com"]
[Date "2023.10.03"]
[Round "5"]
[White "Triumphmate"]
[Black "HrvojeZagreb"]
[Result "1-0"]
[WhiteElo "2476"]
[BlackElo "2317"]
[TimeControl "180+1"]
[EndTime "8:54:07 PDT"]
[Termination "Triumphmate won by checkmate"]

1. e4 {[%clk 0:03:00.9]} 1... c5 {[%clk 0:02:56.6]} 2. Nf3 {[%clk 0:03:00.1]}
2... a6 {[%clk 0:02:55.5]} 3. Nc3 {[%clk 0:02:58.3]} 3... Nc6 {[%clk 0:02:53.3]}
4. d4 {[%clk 0:02:56.8]} 4... cxd4 {[%clk 0:02:54.2]} 5. Nxd4 {[%clk 0:02:57.1]}
5... Nf6 {[%clk 0:02:52.6]} 6. f4 {[%clk 0:02:55.4]} 6... d5 {[%clk 0:02:48.4]}
7. Nxc6 {[%clk 0:02:50.8]} 7... bxc6 {[%clk 0:02:47.9]} 8. e5 {[%clk 0:02:50.9]}
8... Bg4 {[%clk 0:02:28.9]} 9. Be2 {[%clk 0:02:48.2]} 9... Bxe2 {[%clk
0:02:28.2]} 10. Qxe2 {[%clk 0:02:48.7]} 10... Nd7 {[%clk 0:02:25.3]} 11. O-O
{[%clk 0:02:48.8]} 11... e6 {[%clk 0:02:23.4]} 12. f5 {[%clk 0:02:48.7]} 12...
Bc5+ {[%clk 0:02:01]} 13. Kh1 {[%clk 0:02:47.9]} 13... O-O {[%clk 0:02:00.6]}
14. f6 {[%clk 0:02:47.3]} 14... g6 {[%clk 0:01:59.2]} 15. Na4 {[%clk 0:02:38.9]}
15... Bd4 {[%clk 0:01:14.4]} 16. Bf4 {[%clk 0:02:30.8]} 16... Qc7 {[%clk
0:01:07.1]} 17. Rae1 {[%clk 0:02:28.6]} 17... Rfb8 {[%clk 0:01:05]} 18. c3
{[%clk 0:02:26.5]} 18... Ba7 {[%clk 0:01:03.4]} 19. Qg4 {[%clk 0:02:25.7]} 19...
Nc5 {[%clk 0:00:51.3]} 20. Qh4 {[%clk 0:02:11.3]} 20... Qd8 {[%clk 0:00:36.2]}
21. Nxc5 {[%clk 0:02:11.2]} 21... Bxc5 {[%clk 0:00:36]} 22. Rf3 {[%clk
0:02:11.7]} 22... h5 {[%clk 0:00:11.4]} 23. b4 {[%clk 0:01:58]} 23... Bf8 {[%clk
0:00:10.2]} 24. Rg3 {[%clk 0:01:57.8]} 24... Kh7 {[%clk 0:00:09]} 25. Rg5 {[%clk
0:01:56]} 25... a5 {[%clk 0:00:07.6]} 26. Rxh5+ {[%clk 0:01:54]} 26... gxh5
{[%clk 0:00:08.5]} 27. Qxh5+ {[%clk 0:01:54.3]} 27... Kg8 {[%clk 0:00:08.9]} 28.
Re3 {[%clk 0:01:54.1]} 28... Bg7 {[%clk 0:00:07.8]} 29. Rg3 {[%clk 0:01:53.4]}
29... Kf8 {[%clk 0:00:08.1]} 30. Rxg7 {[%clk 0:01:52.5]} 30... Ke8 {[%clk
0:00:08.2]} 31. Qxf7# {[%clk 0:01:52.7]} 1-0

[Event "Early-Titled-Tuesday-Blitz-October-03-2023"]
[Site "Chess.com"]
[Date "2023.10.03"]
[Round "5"]
[White "djano"]
[Black "Orest_Vovk"]
[Result "1-0"]
[WhiteElo "2667"]
[BlackElo "2527"]
[TimeControl "180+1"]
[EndTime "8:54:10 PDT"]
[Termination "djano won by resignation"]

1. d4 {[%clk 0:03:00.9]} 1... h6 {[%clk 0:02:55.6]} 2. e4 {[%clk 0:02:58.2]}
2... g5 {[%clk 0:02:55.9]} 3. Nc3 {[%clk 0:02:57.2]} 3... Bg7 {[%clk 0:02:56.5]}
4. h4 {[%clk 0:02:56]} 4... g4 {[%clk 0:02:55.7]} 5. Bc4 {[%clk 0:02:49.6]} 5...
c5 {[%clk 0:02:53.9]} 6. Be3 {[%clk 0:02:43.1]} 6... Nc6 {[%clk 0:02:51.2]} 7.
Qxg4 {[%clk 0:02:32.7]} 7... Kf8 {[%clk 0:02:33.1]} 8. Qh5 {[%clk 0:02:22.2]}
8... e6 {[%clk 0:02:07.6]} 9. dxc5 {[%clk 0:02:16]} 9... Bxc3+ {[%clk
0:02:01.8]} 10. bxc3 {[%clk 0:02:15.6]} 10... Nf6 {[%clk 0:02:02.5]} 11. Qe2
{[%clk 0:01:53.6]} 11... Qa5 {[%clk 0:01:55.8]} 12. Qd3 {[%clk 0:01:33]} 12...
Nxe4 {[%clk 0:01:47.2]} 13. Ne2 {[%clk 0:01:23.7]} 13... Nf6 {[%clk 0:01:10.7]}
14. Qd6+ {[%clk 0:01:19.5]} 14... Kg7 {[%clk 0:00:55.5]} 15. Rh3 {[%clk
0:01:13.9]} 15... Rg8 {[%clk 0:00:40.2]} 16. Rg3+ {[%clk 0:01:12.5]} 16... Kh8
{[%clk 0:00:37.8]} 17. Qf4 {[%clk 0:01:05.6]} 17... Rxg3 {[%clk 0:00:33.9]} 18.
Qxf6+ {[%clk 0:01:00.9]} 18... Kg8 {[%clk 0:00:33.5]} 19. fxg3 {[%clk
0:00:57.1]} 19... d5 {[%clk 0:00:29.6]} 20. Bxh6 {[%clk 0:00:53.2]} 1-0

[Event "Early-Titled-Tuesday-Blitz-October-03-2023"]
[Site "Chess.com"]
[Date "2023.10.03"]
[Round "5"]
[White "crazy_m_attack"]
[Black "LubovMarkelova"]
[Result "1-0"]
[WhiteElo "2406"]
[BlackElo "2208"]
[TimeControl "180+1"]
[EndTime "8:54:15 PDT"]
[Termination "crazy_m_attack won on time"]

1. e4 {[%clk 0:03:00.9]} 1... c5 {[%clk 0:01:14.9]} 2. Nf3 {[%clk 0:02:58.6]}
2... d6 {[%clk 0:01:15]} 3. d4 {[%clk 0:02:56.9]} 3... cxd4 {[%clk 0:01:14.2]}
4. Nxd4 {[%clk 0:02:57.8]} 4... Nf6 {[%clk 0:01:14.1]} 5. Nc3 {[%clk 0:02:58]}
5... g6 {[%clk 0:01:13]} 6. Be2 {[%clk 0:02:57.2]} 6... Bg7 {[%clk 0:01:11.5]}
7. Be3 {[%clk 0:02:56.7]} 7... O-O {[%clk 0:01:11.5]} 8. O-O {[%clk 0:02:56.4]}
8... Nc6 {[%clk 0:01:10.1]} 9. Nb3 {[%clk 0:02:55.3]} 9... Bd7 {[%clk
0:01:09.3]} 10. f4 {[%clk 0:02:55.1]} 10... a6 {[%clk 0:01:02.1]} 11. a4 {[%clk
0:02:54.1]} 11... Rc8 {[%clk 0:01:01.7]} 12. Kh1 {[%clk 0:02:51.4]} 12... Re8
{[%clk 0:00:56.5]} 13. Qd2 {[%clk 0:02:43.5]} 13... h5 {[%clk 0:00:38.2]} 14.
Rad1 {[%clk 0:02:37.7]} 14... Bg4 {[%clk 0:00:37.1]} 15. Bg1 {[%clk 0:02:25.2]}
15... Bxe2 {[%clk 0:00:36.2]} 16. Qxe2 {[%clk 0:02:26.1]} 16... Nd7 {[%clk
0:00:32.7]} 17. f5 {[%clk 0:02:15.2]} 17... Nde5 {[%clk 0:00:28.7]} 18. fxg6
{[%clk 0:01:59.1]} 18... fxg6 {[%clk 0:00:28.4]} 19. Nd5 {[%clk 0:01:59.4]}
19... Rf8 {[%clk 0:00:20.8]} 20. Nf4 {[%clk 0:01:53.9]} 20... Qe8 {[%clk
0:00:18.7]} 21. Ne6 {[%clk 0:01:48.9]} 21... Rxf1 {[%clk 0:00:18.4]} 22. Rxf1
{[%clk 0:01:49.8]} 22... Kh7 {[%clk 0:00:17.9]} 23. Ng5+ {[%clk 0:01:47.1]}
23... Kg8 {[%clk 0:00:17.7]} 24. Qd1 {[%clk 0:01:43.8]} 24... e6 {[%clk
0:00:16.5]} 25. Qxd6 {[%clk 0:01:42]} 25... Rd8 {[%clk 0:00:15.7]} 26. Qxe6+
{[%clk 0:01:39.1]} 26... Qxe6 {[%clk 0:00:16]} 27. Nxe6 {[%clk 0:01:40]} 27...
Rd7 {[%clk 0:00:13.9]} 28. Nbc5 {[%clk 0:01:39.8]} 1-0

[Event "Early-Titled-Tuesday-Blitz-October-03-2023"]
[Site "Chess.com"]
[Date "2023.10.03"]
[Round "5"]
[White "AjedrezenMadrid"]
[Black "Rutricks"]
[Result "0-1"]
[WhiteElo "2466"]
[BlackElo "2672"]
[TimeControl "180+1"]
[EndTime "8:54:18 PDT"]
[Termination "Rutricks won by resignation"]

1. b3 {[%clk 0:03:00.9]} 1... a5 {[%clk 0:02:47.7]} 2. c4 {[%clk 0:02:59.5]}
2... a4 {[%clk 0:02:48]} 3. bxa4 {[%clk 0:02:58.6]} 3... d5 {[%clk 0:02:48.4]}
4. cxd5 {[%clk 0:02:56.8]} 4... Nf6 {[%clk 0:02:49.1]} 5. Nf3 {[%clk 0:02:49]}
5... Nxd5 {[%clk 0:02:49.6]} 6. g3 {[%clk 0:02:47.9]} 6... Bd7 {[%clk
0:02:38.1]} 7. Nc3 {[%clk 0:02:42.5]} 7... Nxc3 {[%clk 0:02:35.9]} 8. dxc3
{[%clk 0:02:42.7]} 8... Bxa4 {[%clk 0:02:29.8]} 9. Qxd8+ {[%clk 0:02:42.2]} 9...
Kxd8 {[%clk 0:02:30.7]} 10. Bg2 {[%clk 0:02:42.1]} 10... f6 {[%clk 0:02:29.2]}
11. Nd4 {[%clk 0:02:31]} 11... e5 {[%clk 0:02:09.4]} 12. Ne6+ {[%clk 0:02:25.8]}
12... Kc8 {[%clk 0:02:05.7]} 13. Be3 {[%clk 0:02:16.7]} 13... Bc6 {[%clk
0:01:41.7]} 14. Bh3 {[%clk 0:01:58.7]} 14... Bd7 {[%clk 0:01:21.4]} 15. O-O
{[%clk 0:01:57.3]} 15... Ra6 {[%clk 0:01:21.5]} 16. Nxf8 {[%clk 0:01:07]} 16...
Bxh3 {[%clk 0:01:19.9]} 17. Bc5 {[%clk 0:01:07.1]} 17... b6 {[%clk 0:01:08]} 18.
Rfb1 {[%clk 0:00:06.1]} 18... bxc5 {[%clk 0:01:05.3]} 19. Rxb8+ {[%clk
0:00:05.6]} 19... Kxb8 {[%clk 0:01:05.7]} 0-1

[Event "Early-Titled-Tuesday-Blitz-October-03-2023"]
[Site "Chess.com"]
[Date "2023.10.03"]
[Round "5"]
[White "colegiodemadrid"]
[Black "FERNANDEZL1983"]
[Result "0-1"]
[WhiteElo "2410"]
[BlackElo "2593"]
[TimeControl "180+1"]
[EndTime "8:54:29 PDT"]
[Termination "FERNANDEZL1983 won by resignation"]

1. e4 {[%clk 0:03:00.9]} 1... c5 {[%clk 0:02:59.2]} 2. Nf3 {[%clk 0:03:00.1]}
2... a6 {[%clk 0:02:59.7]} 3. c4 {[%clk 0:02:59.7]} 3... d6 {[%clk 0:02:58.8]}
4. d4 {[%clk 0:02:59.8]} 4... cxd4 {[%clk 0:02:59.4]} 5. Nxd4 {[%clk 0:03:00.5]}
5... Nf6 {[%clk 0:02:59.4]} 6. Nc3 {[%clk 0:02:58]} 6... e6 {[%clk 0:02:59.9]}
7. Be3 {[%clk 0:02:55]} 7... Be7 {[%clk 0:02:59.5]} 8. Be2 {[%clk 0:02:55.6]}
8... O-O {[%clk 0:02:59]} 9. Qd2 {[%clk 0:02:56.2]} 9... b6 {[%clk 0:02:59]} 10.
O-O {[%clk 0:02:55.8]} 10... Bb7 {[%clk 0:02:59.5]} 11. f3 {[%clk 0:02:56.7]}
11... Nbd7 {[%clk 0:02:59.2]} 12. b4 {[%clk 0:02:54.2]} 12... Rc8 {[%clk
0:02:59]} 13. Rac1 {[%clk 0:02:52.2]} 13... Qc7 {[%clk 0:02:59]} 14. a3 {[%clk
0:02:50.8]} 14... Qb8 {[%clk 0:02:59.5]} 15. Rc2 {[%clk 0:02:49.4]} 15... Bd8
{[%clk 0:03:00]} 16. Kh1 {[%clk 0:02:49.7]} 16... Bc7 {[%clk 0:03:00.6]} 17. Bg1
{[%clk 0:02:50.4]} 17... Rfd8 {[%clk 0:03:00.1]} 18. Rb1 {[%clk 0:02:42.5]}
18... Nf8 {[%clk 0:02:57.1]} 19. Nb3 {[%clk 0:02:38.6]} 19... d5 {[%clk
0:02:51.3]} 20. cxd5 {[%clk 0:02:38.3]} 20... exd5 {[%clk 0:02:51.2]} 21. exd5
{[%clk 0:02:31.1]} 21... Bf4 {[%clk 0:02:43.2]} 22. Qe1 {[%clk 0:02:23.3]} 22...
Nxd5 {[%clk 0:02:42.1]} 23. Nxd5 {[%clk 0:02:09.6]} 23... Rxc2 {[%clk
0:02:38.9]} 24. Ne7+ {[%clk 0:01:32.6]} 24... Kh8 {[%clk 0:02:37.8]} 25. Nd4
{[%clk 0:01:32.7]} 25... Rd2 {[%clk 0:02:16]} 26. Ndc6 {[%clk 0:01:20]} 26...
Bxc6 {[%clk 0:02:12.9]} 27. Nxc6 {[%clk 0:01:20.9]} 27... Qc7 {[%clk 0:02:01.2]}
28. Nxd8 {[%clk 0:01:20.4]} 28... Rxd8 {[%clk 0:02:01.3]} 29. Bxa6 {[%clk
0:01:20.2]} 29... Ne6 {[%clk 0:01:58.5]} 30. a4 {[%clk 0:01:18.5]} 30... h6
{[%clk 0:01:57.5]} 31. Qf2 {[%clk 0:01:11.6]} 31... Rd4 {[%clk 0:01:45.4]} 32.
Qe2 {[%clk 0:00:49.6]} 32... Rd2 {[%clk 0:01:44.4]} 33. Qe4 {[%clk 0:00:50]}
33... Ng5 {[%clk 0:01:38.3]} 34. Qa8+ {[%clk 0:00:26.5]} 34... Kh7 {[%clk
0:01:37.7]} 35. Qb7 {[%clk 0:00:27]} 35... Qc2 {[%clk 0:01:36.4]} 36. h4 {[%clk
0:00:14.3]} 36... Qxb1 {[%clk 0:01:33]} 37. hxg5 {[%clk 0:00:14.8]} 37... Rd1
{[%clk 0:01:32.2]} 38. Qe4+ {[%clk 0:00:14.5]} 38... Qxe4 {[%clk 0:01:31]} 39.
fxe4 {[%clk 0:00:15.4]} 39... Be3 {[%clk 0:01:31.3]} 0-1

[Event "Early-Titled-Tuesday-Blitz-October-03-2023"]
[Site "Chess.com"]
[Date "2023.10.03"]
[Round "5"]
[White "ODreamchess"]
[Black "Sadykov_Ramil"]
[Result "1-0"]
[WhiteElo "2772"]
[BlackElo "2602"]
[TimeControl "180+1"]
[EndTime "8:54:30 PDT"]
[Termination "ODreamchess won by resignation"]

1. Nf3 {[%clk 0:02:59.7]} 1... Nf6 {[%clk 0:02:55.3]} 2. g3 {[%clk 0:03:00]}
2... g6 {[%clk 0:02:51.8]} 3. Bg2 {[%clk 0:03:00.3]} 3... Bg7 {[%clk 0:02:52.5]}
4. O-O {[%clk 0:03:01.2]} 4... O-O {[%clk 0:02:53.1]} 5. b3 {[%clk 0:03:01.8]}
5... c5 {[%clk 0:02:45.9]} 6. Bb2 {[%clk 0:03:01.9]} 6... Nc6 {[%clk 0:02:42.9]}
7. d3 {[%clk 0:03:02.4]} 7... b6 {[%clk 0:02:36]} 8. c4 {[%clk 0:03:02.4]} 8...
Bb7 {[%clk 0:02:32]} 9. Nbd2 {[%clk 0:03:00.6]} 9... d5 {[%clk 0:02:28.7]} 10.
a3 {[%clk 0:03:00.3]} 10... a5 {[%clk 0:02:16.5]} 11. cxd5 {[%clk 0:03:00.7]}
11... Nxd5 {[%clk 0:02:15.4]} 12. Bxg7 {[%clk 0:03:01.6]} 12... Kxg7 {[%clk
0:02:15.4]} 13. Qc2 {[%clk 0:03:01.4]} 13... f6 {[%clk 0:02:11.1]} 14. Rac1
{[%clk 0:03:00]} 14... e5 {[%clk 0:02:10.3]} 15. Rfd1 {[%clk 0:03:00.1]} 15...
Rc8 {[%clk 0:02:07.7]} 16. Qb2 {[%clk 0:02:59.8]} 16... Re8 {[%clk 0:02:00.7]}
17. e3 {[%clk 0:02:55.5]} 17... Nde7 {[%clk 0:01:51.6]} 18. Ne4 {[%clk
0:02:55.3]} 18... Nf5 {[%clk 0:01:48.3]} 19. h3 {[%clk 0:02:46.4]} 19... Qe7
{[%clk 0:01:39.7]} 20. Nc3 {[%clk 0:02:45.3]} 20... Red8 {[%clk 0:01:37.2]} 21.
Nd2 {[%clk 0:02:33.4]} 21... Rxd3 {[%clk 0:01:32.2]} 22. Nd5 {[%clk 0:02:33.5]}
22... Qd8 {[%clk 0:01:29]} 23. Nc4 {[%clk 0:02:33.5]} 23... Rxd1+ {[%clk
0:01:23.1]} 24. Rxd1 {[%clk 0:02:34.4]} 24... b5 {[%clk 0:01:13.6]} 25. Nc3
{[%clk 0:02:33.1]} 25... Qf8 {[%clk 0:00:20.6]} 26. Nxb5 {[%clk 0:02:31.5]}
26... Rd8 {[%clk 0:00:20.4]} 27. Qe2 {[%clk 0:02:30.9]} 27... Qe7 {[%clk
0:00:16.1]} 28. Nc3 {[%clk 0:02:13.3]} 28... Nb8 {[%clk 0:00:12.4]} 29. Rxd8
{[%clk 0:02:10.6]} 29... Qxd8 {[%clk 0:00:09.7]} 30. Bxb7 {[%clk 0:02:09.7]}
30... Qc7 {[%clk 0:00:08.6]} 31. Be4 {[%clk 0:02:09.3]} 31... Ne7 {[%clk
0:00:05.8]} 32. Qd2 {[%clk 0:02:07.5]} 32... Nd7 {[%clk 0:00:06.1]} 33. Qd6
{[%clk 0:02:06.9]} 33... Qxd6 {[%clk 0:00:04.7]} 34. Nxd6 {[%clk 0:02:07.8]}
34... f5 {[%clk 0:00:05.6]} 35. Bf3 {[%clk 0:02:05.6]} 35... e4 {[%clk
0:00:05.5]} 36. Be2 {[%clk 0:02:06.2]} 36... Kf6 {[%clk 0:00:04.7]} 37. Nc4
{[%clk 0:02:06.6]} 37... Nc6 {[%clk 0:00:04.4]} 38. Na4 {[%clk 0:02:07.1]} 38...
Nde5 {[%clk 0:00:03]} 39. Nxe5 {[%clk 0:02:07.3]} 39... Kxe5 {[%clk 0:00:03.9]}
40. Nxc5 {[%clk 0:02:07.3]} 40... g5 {[%clk 0:00:04.2]} 41. Nb7 {[%clk
0:02:07.1]} 41... h6 {[%clk 0:00:03.8]} 42. Bb5 {[%clk 0:02:07.3]} 42... Na7
{[%clk 0:00:03.9]} 43. Bd7 {[%clk 0:02:06.8]} 43... f4 {[%clk 0:00:03.1]} 44.
Nxa5 {[%clk 0:02:05.9]} 1-0

[Event "Early-Titled-Tuesday-Blitz-October-03-2023"]
[Site "Chess.com"]
[Date "2023.10.03"]
[Round "5"]
[White "slorovel"]
[Black "Kirill_Klukin"]
[Result "0-1"]
[WhiteElo "2482"]
[BlackElo "2704"]
[TimeControl "180+1"]
[EndTime "8:54:31 PDT"]
[Termination "Kirill_Klukin won on time"]

1. e4 {[%clk 0:03:00.9]} 1... c5 {[%clk 0:02:58.5]} 2. Nf3 {[%clk 0:03:01.2]}
2... g6 {[%clk 0:02:57.4]} 3. c3 {[%clk 0:03:00]} 3... Bg7 {[%clk 0:02:56.8]} 4.
d4 {[%clk 0:02:59.6]} 4... cxd4 {[%clk 0:02:57.3]} 5. cxd4 {[%clk 0:03:00.5]}
5... d5 {[%clk 0:02:57.5]} 6. e5 {[%clk 0:03:00.9]} 6... a6 {[%clk 0:02:57.5]}
7. Bd3 {[%clk 0:03:00.6]} 7... Nc6 {[%clk 0:02:58]} 8. O-O {[%clk 0:03:01]} 8...
f6 {[%clk 0:02:58.8]} 9. Re1 {[%clk 0:02:59.3]} 9... Bg4 {[%clk 0:02:53.6]} 10.
Nc3 {[%clk 0:02:44.3]} 10... fxe5 {[%clk 0:02:43.6]} 11. dxe5 {[%clk 0:02:42.3]}
11... e6 {[%clk 0:02:42.5]} 12. Bf4 {[%clk 0:02:38.7]} 12... Nge7 {[%clk
0:02:41.4]} 13. h3 {[%clk 0:02:39.2]} 13... O-O {[%clk 0:02:35.4]} 14. h4 {[%clk
0:02:31.5]} 14... Rxf4 {[%clk 0:02:34.6]} 15. Qd2 {[%clk 0:00:25.4]} 15... Rf8
{[%clk 0:02:19.9]} 16. Ng5 {[%clk 0:00:18.9]} 16... h6 {[%clk 0:02:14.7]} 17. f3
{[%clk 0:00:18.9]} 17... hxg5 {[%clk 0:02:07.4]} 18. fxg4 {[%clk 0:00:19.8]}
18... gxh4 {[%clk 0:02:07.3]} 19. Qg5 {[%clk 0:00:17.8]} 19... Qb6+ {[%clk
0:01:42.4]} 20. Kh1 {[%clk 0:00:15.8]} 20... h3 {[%clk 0:01:37.4]} 21. Re2
{[%clk 0:00:13.5]} 21... Rf2 {[%clk 0:01:33.4]} 22. gxh3 {[%clk 0:00:11]} 22...
Raf8 {[%clk 0:01:33.4]} 23. Rxf2 {[%clk 0:00:03.4]} 23... Qxf2 {[%clk
0:01:29.9]} 24. Rf1 {[%clk 0:00:04]} 24... Qg3 {[%clk 0:01:28]} 25. Rxf8+ {[%clk
0:00:04.9]} 25... Kxf8 {[%clk 0:01:27.7]} 26. Bxg6 {[%clk 0:00:04.7]} 26...
Qxh3+ {[%clk 0:01:27.6]} 27. Kg1 {[%clk 0:00:05]} 27... Qg3+ {[%clk 0:01:27.8]}
28. Kh1 {[%clk 0:00:05.1]} 28... Nxe5 {[%clk 0:01:23.7]} 29. Bh5 {[%clk
0:00:03]} 29... Qh3+ {[%clk 0:01:23.9]} 30. Kg1 {[%clk 0:00:03.5]} 30... Nf3+
{[%clk 0:01:24.7]} 31. Kf2 {[%clk 0:00:04.3]} 31... Nxg5 {[%clk 0:01:25.6]} 0-1

[Event "Early-Titled-Tuesday-Blitz-October-03-2023"]
[Site "Chess.com"]
[Date "2023.10.03"]
[Round "5"]
[White "SharapovEvgeny"]
[Black "blitzking1729"]
[Result "1-0"]
[WhiteElo "2590"]
[BlackElo "2721"]
[TimeControl "180+1"]
[EndTime "8:54:48 PDT"]
[Termination "SharapovEvgeny won by resignation"]

1. e4 {[%clk 0:03:00]} 1... d6 {[%clk 0:02:57.9]} 2. d4 {[%clk 0:02:59.5]} 2...
Nf6 {[%clk 0:02:58.3]} 3. Nc3 {[%clk 0:02:59.8]} 3... e5 {[%clk 0:02:57.5]} 4.
Nf3 {[%clk 0:02:59.3]} 4... exd4 {[%clk 0:02:57.2]} 5. Nxd4 {[%clk 0:02:59]}
5... Be7 {[%clk 0:02:58.1]} 6. Bc4 {[%clk 0:02:57.2]} 6... O-O {[%clk 0:02:57]}
7. O-O {[%clk 0:02:57.1]} 7... Nc6 {[%clk 0:02:53.3]} 8. Nxc6 {[%clk 0:02:56.3]}
8... bxc6 {[%clk 0:02:53.6]} 9. Re1 {[%clk 0:02:56.2]} 9... Nd7 {[%clk
0:02:52.2]} 10. b3 {[%clk 0:02:50.5]} 10... Bf6 {[%clk 0:02:50.9]} 11. Bb2
{[%clk 0:02:50.4]} 11... Ne5 {[%clk 0:02:50.2]} 12. Bf1 {[%clk 0:02:49.8]} 12...
Ng6 {[%clk 0:02:48.3]} 13. Na4 {[%clk 0:02:46.5]} 13... Bxb2 {[%clk 0:02:38.6]}
14. Nxb2 {[%clk 0:02:46.2]} 14... Qf6 {[%clk 0:02:39.5]} 15. Nd3 {[%clk
0:02:44]} 15... a5 {[%clk 0:02:36.4]} 16. a4 {[%clk 0:02:43.1]} 16... Re8 {[%clk
0:02:36.1]} 17. Qd2 {[%clk 0:02:40.3]} 17... Ba6 {[%clk 0:02:34.1]} 18. Rad1
{[%clk 0:02:39.7]} 18... Bxd3 {[%clk 0:02:32.5]} 19. Bxd3 {[%clk 0:02:37.4]}
19... Re5 {[%clk 0:02:24.2]} 20. g3 {[%clk 0:02:35.9]} 20... h5 {[%clk 0:02:20]}
21. f4 {[%clk 0:02:35.5]} 21... Rc5 {[%clk 0:02:18.1]} 22. Qf2 {[%clk
0:02:28.6]} 22... h4 {[%clk 0:02:13.5]} 23. e5 {[%clk 0:02:28.7]} 23... hxg3
{[%clk 0:02:13.3]} 24. hxg3 {[%clk 0:02:26.9]} 24... Qd8 {[%clk 0:01:46.1]} 25.
e6 {[%clk 0:02:21.7]} 25... Ne7 {[%clk 0:01:22.8]} 26. exf7+ {[%clk 0:02:19]}
26... Kxf7 {[%clk 0:01:17.9]} 27. Re2 {[%clk 0:02:05.2]} 27... Qd7 {[%clk
0:01:00.1]} 28. Rde1 {[%clk 0:02:02.4]} 28... Re8 {[%clk 0:00:59.4]} 29. Qf3
{[%clk 0:01:55.1]} 29... g6 {[%clk 0:00:39]} 30. g4 {[%clk 0:01:51.8]} 30... Kf8
{[%clk 0:00:28.6]} 31. Bxg6 {[%clk 0:01:48.7]} 31... Nxg6 {[%clk 0:00:25]} 32.
Rxe8+ {[%clk 0:01:48.1]} 32... Qxe8 {[%clk 0:00:25.9]} 33. Rxe8+ {[%clk
0:01:47.6]} 33... Kxe8 {[%clk 0:00:26.8]} 34. Qe4+ {[%clk 0:01:40.1]} 34... Kf7
{[%clk 0:00:25.9]} 35. c4 {[%clk 0:01:35.9]} 35... Nf8 {[%clk 0:00:21.7]} 36. f5
{[%clk 0:01:32.2]} 36... d5 {[%clk 0:00:08.2]} 37. Qe5 {[%clk 0:01:29.2]} 1-0